bitfinex-derivatives/quotes_SOLF0:USTF0_20241101
["timestamp","ask_amount","ask_price","bid_price","bid_amount"]
[1730467210347,1.77526145,170.3,170.29,14.77387881]
[1730467210552,1.77526145,170.3,170.29,16.24331621]
[1730467210851,1.77526145,170.3,170.29,14.77387218]
[1730467211051,1.77526145,170.3,170.29,13.30411621]
[1730467211637,1.77526145,170.3,170.29,9.0561919]
[1730467211841,1.77526145,170.3,170.29,14.77174098]
[1730467212049,1.77526145,170.3,170.29,9.0561919]
[1730467212238,1.77526145,170.3,170.29,17.71168591]
[1730467212446,1.77526145,170.3,170.29,11.9953919]
[1730467212645,1.77526145,170.3,170.29,17.71149896]
[1730467213351,1.77526145,170.3,170.29,16.24097277]
[1730467213548,1.77526145,170.3,170.29,17.71068314]
[1730467214139,1.77526145,170.3,170.29,14.77148314]
[1730467214749,1.77526145,170.3,170.29,5.71529124]
[1730467215052,1.77526145,170.3,170.24,5.74146178]
[1730467215053,10.83145335,170.3,170.25,3.04]
[1730467215254,2.9395,170.28,170.26,8.27779473]
[1730467215442,2.9395,170.28,170.27,1.46998354]
[1730467215645,2.9395,170.28,170.24,12.0961919]
[1730467215847,2.9395,170.28,170.27,1.46998473]
[1730467216044,2.9395,170.28,170.25,17.28557933]
[1730467216240,2.9395,170.28,170.26,1.46998473]
[1730467216448,2.9395,170.28,170.25,9.0561919]
[1730467216449,11.9956919,170.28,170.27,1.46998473]
[1730467217350,9.0561919,170.28,170.23,3.04]
[1730467217658,2.9398,170.26,170.24,10.58438165]
[1730467217848,2.9398,170.26,170.25,1.47002693]
[1730467218349,11.9958919,170.27,170.25,1.47002693]
[1730467218550,11.9958919,170.27,170.23,5.9802]
[1730467218746,2.9397,170.27,170.24,1.470071]
[1730467218956,2.9397,170.27,170.24,2.94]
[1730467219462,2.9397,170.27,170.25,1.47017309]
[1730467219657,2.9397,170.26,170.25,1.47017309]
[1730467219956,2.9397,170.26,170.22,3.04]
[1730467219957,9.0561919,170.26,170.22,3.04]
[1730467220150,9.0561919,170.26,170.23,1.47031181]
[1730467220151,2.9401,170.24,170.23,1.47031181]
[1730467220356,9.0561919,170.26,170.2,11.9968919]
[1730467220543,9.0561919,170.24,170.21,10.58218734]
[1730467220744,2.9404,170.22,170.19,2.9409]
[1730467221066,9.0561919,170.22,170.2,10.58152926]
[1730467221358,2.9404,170.22,170.21,1.47032558]
[1730467221560,9.0561919,170.25,170.21,10.52651748]
[1730467221755,2.9402,170.24,170.21,9.0561919]
[1730467222054,2.9402,170.24,170.22,1.47028251]
[1730467222352,2.9402,170.24,170.21,9.0561919]
[1730467222558,2.9402,170.24,170.22,1.47025036]
[1730467222757,9.0561919,170.25,170.22,1.47025036]
[1730467222960,9.0561919,170.25,170.21,9.0561919]
[1730467222961,2.9402,170.24,170.21,9.0561919]
[1730467223652,2.9403,170.23,170.21,9.0561919]
[1730467224649,9.0561919,170.25,170.21,9.0561919]
[1730467225460,2.9402,170.24,170.21,9.0561919]
[1730467225643,2.9402,170.24,170.2,11.9968919]
[1730467226047,2.9402,170.23,170.21,1.47035218]
[1730467226258,2.9402,170.23,170.2,11.9968919]
[1730467226458,2.9402,170.23,170.21,1.47027307]
[1730467226766,3.04,170.27,170.19,2.9409]
[1730467226767,2.9406,170.21,170.19,9.0561919]
[1730467227062,2.9406,170.21,170.2,4.22241397]
[1730467227249,2.9406,170.21,170.19,9.0561919]
[1730467228557,2.9406,170.21,170.17,5.9812]
[1730467228558,9.0561919,170.21,170.17,12.0961919]
[1730467228761,9.0561919,170.22,170.18,5.6924575]
[1730467228959,9.0561919,170.22,170.17,12.0961919]
[1730467229166,9.0561919,170.22,170.18,5.69222248]
[1730467229167,2.9406,170.21,170.18,5.69222248]
[1730467229352,9.0561919,170.22,170.17,12.0961919]
[1730467229662,9.0561919,170.22,170.18,13.27730229]
[1730467229861,9.0561919,170.22,170.18,9.0561919]
[1730467229862,2.9408,170.2,170.18,9.0561919]
[1730467230252,9.0561919,170.22,170.18,9.0561919]
[1730467231058,9.0561919,170.22,170.17,9.0561919]
[1730467231250,9.0561919,170.22,170.18,5.6910165]
[1730467231251,2.9409,170.2,170.18,5.6910165]
[1730467231454,2.9409,170.2,170.17,9.0561919]
[1730467231655,2.9409,170.2,170.18,4.21962426]
[1730467231857,2.9409,170.2,170.17,9.0561919]
[1730467233162,2.9406,170.21,170.18,9.0561919]
[1730467234066,2.9402,170.24,170.2,11.9968919]
[1730467234367,9.0561919,170.26,170.21,9.0561919]
[1730467234664,9.0561919,170.25,170.2,9.0561919]
[1730467235062,2.9403,170.23,170.2,11.9968919]
[1730467235262,9.0561919,170.25,170.2,9.0561919]
[1730467235768,2.9403,170.23,170.2,11.9968919]
[1730467235961,9.0561919,170.23,170.19,9.0561919]
[1730467237662,2.9407,170.21,170.19,9.0561919]
[1730467239452,9.0561919,170.23,170.19,9.0561919]
[1730467239658,2.9407,170.21,170.19,9.0561919]
[1730467240369,9.0561919,170.24,170.19,9.0561919]
[1730467240669,1.3475,170.28,170.21,9.0561919]
[1730467240670,9.0561919,170.27,170.21,9.0561919]
[1730467240870,2.94,170.25,170.21,11.9966919]
[1730467241059,9.0561919,170.26,170.21,11.9966919]
[1730467241764,9.0561919,170.26,170.21,2.9405]
[1730467241953,9.0561919,170.24,170.21,2.9405]
[1730467243371,2.9404,170.23,170.2,11.9967919]
[1730467243672,9.0561919,170.24,170.2,11.9967919]
[1730467244465,2.9405,170.22,170.2,9.0561919]
[1730467244665,9.0561919,170.22,170.19,9.0561919]
[1730467244966,9.0561919,170.22,170.17,12.0961919]
[1730467245172,9.0561919,170.22,170.17,15.0372919]
[1730467245362,9.0561919,170.22,170.17,9.0561919]
[1730467245559,2.941,170.19,170.17,9.0561919]
[1730467245765,9.0561919,170.2,170.16,9.0561919]
[1730467246068,5.8792,170.27,170.13,11.66184684]
[1730467246069,2.9416,170.15,170.13,11.66184684]
[1730467246273,9.0561919,170.16,170.13,3.04]
[1730467247072,9.0561919,170.16,170.11,16.3849919]
[1730467247461,2.9417,170.15,170.11,16.3849919]
[1730467248471,9.0561919,170.2,170.14,9.0561919]
[1730467248779,12.67676533,170.33,170.19,9.0561919]
[1730467248780,9.0561919,170.24,170.19,9.0561919]
[1730467248971,9.0561919,170.24,170.12,8.20672755]
[1730467248972,9.0561919,170.24,170.18,9.0561919]
[1730467249759,2.9404,170.22,170.18,11.9971919]
[1730467249966,9.0561919,170.24,170.18,9.0561919]
[1730467250463,9.0561919,170.21,170.17,9.0561919]
[1730467250673,9.0561919,170.19,170.16,2.9413]
[1730467250868,9.0561919,170.19,170.15,12.0961919]
[1730467252066,9.0561919,170.19,170.15,15.0376919]
[1730467252765,11.9971919,170.19,170.15,15.0376919]
[1730467253171,11.9971919,170.19,170.15,12.0961919]
[1730467253575,2.9399,170.25,170.18,9.0561919]
[1730467253774,2.9399,170.25,170.15,6.03770526]
[1730467253775,9.0561919,170.27,170.22,9.0561919]
[1730467253971,9.0561919,170.26,170.2,12.0961919]
[1730467254169,9.0561919,170.25,170.2,12.0961919]
[1730467254474,9.0561919,170.25,170.2,15.0368919]
[1730467255359,2.9401,170.24,170.2,15.0368919]
[1730467256174,2.9401,170.24,170.2,5.9807]
[1730467257662,9.0561919,170.23,170.2,5.9807]
[1730467259570,9.0561919,170.23,170.2,3.04]
[1730467259776,9.0561919,170.22,170.17,9.0561919]
[1730467259967,1.77526145,170.3,170.16,1.2393]
[1730467259968,9.0561919,170.2,170.16,9.0561919]
[1730467260976,9.0561919,170.2,170.17,2.9412]
[1730467261178,9.0561919,170.2,170.16,9.0561919]
[1730467261362,9.0561919,170.2,170.16,11.9975919]
[1730467262372,11.9969919,170.2,170.16,11.9975919]
[1730467264280,9.0561919,170.2,170.16,11.9975919]
[1730467264484,9.0561919,170.21,170.16,11.9975919]
[1730467264677,9.0561919,170.2,170.16,11.9975919]
[1730467266480,11.9969919,170.2,170.16,11.9975919]
[1730467267381,11.9971919,170.19,170.15,12.0961919]
[1730467267580,9.0561919,170.16,170.12,9.0561919]
[1730467267786,9.0561919,170.16,170.12,3.04]
[1730467267985,9.0561919,170.14,170.11,3.04]
[1730467268384,11.9980919,170.14,170.11,3.04]
[1730467269396,11.9980919,170.14,170.1,1.2573]
[1730467269397,9.0561919,170.14,170.1,1.2573]
[1730467269575,2.9423,170.12,170.08,12.0961919]
[1730467270588,9.0561919,170.11,170.08,12.0961919]
[1730467270792,9.0561919,170.11,170.06,2.95050473]
[1730467270793,9.0561919,170.1,170.06,12.0961919]
[1730467271384,9.0561919,170.1,170.06,9.0561919]
[1730467271693,11.9987919,170.1,170.05,16.3524919]
[1730467272587,3.04,170.17,170.05,10.3692919]
[1730467272588,9.0561919,170.09,170.05,10.3692919]
[1730467272977,2.9429,170.08,170.05,10.3692919]
[1730467273375,9.0561919,170.09,170.05,10.3692919]
[1730467273586,11.9988919,170.09,170.05,10.3692919]
[1730467273984,11.9988919,170.09,170.05,13.3125919]
[1730467274380,9.0561919,170.09,170.05,9.0561919]
[1730467274688,2.9429,170.08,170.05,9.0561919]
[1730467274888,9.0561919,170.07,170.03,12.0961919]
[1730467275389,9.0561919,170.07,170.03,5.99419514]
[1730467275390,2.9432,170.06,170.03,5.99419514]
[1730467275596,9.0561919,170.07,170.03,5.99419514]
[1730467276485,11.9992919,170.07,170.03,8.93789514]
[1730467276694,9.0561919,170.07,170.03,5.99419514]
[1730467276990,2.9433,170.06,170.03,3.04]
[1730467277486,2.9433,170.06,170.02,11.9998919]
[1730467277685,2.9433,170.06,170.02,14.88815044]
[1730467277883,2.9433,170.05,170.02,11.94445044]
[1730467278996,2.9432,170.06,170.03,9.0561919]
[1730467279191,2.9432,170.06,170.02,11.94445044]
[1730467279385,2.9438,170.03,170.0,12.0961919]
[1730467279591,2.9438,170.03,170.0,9.0561919]
[1730467279894,2.9441,170.01,169.98,41.18539375]
[1730467280092,3.8962,170.11,169.98,41.18539375]
[1730467280093,9.0561919,170.0,169.98,41.18539375]
[1730467280597,9.0561919,170.0,169.96,12.0961919]
[1730467280598,2.9444,169.99,169.96,12.0961919]
[1730467281095,9.0561919,169.99,169.96,3.04]
[1730467281490,12.0005919,169.99,169.96,3.04]
[1730467283093,2.9451,169.96,169.92,9.0561919]
[1730467283288,2.9451,169.96,169.92,3.04]
[1730467283289,9.0561919,169.96,169.92,3.04]
[1730467284096,9.0561919,169.95,169.9,10.3928919]
[1730467284408,9.0561919,169.95,169.89,5.87703508]
[1730467284409,9.0561919,169.92,169.89,3.04]
[1730467284998,12.0018919,169.92,169.89,3.04]
[1730467285193,9.0561919,169.92,169.89,3.04]
[1730467285596,2.9459,169.9,169.89,3.04]
[1730467285804,2.9459,169.9,169.86,9.0561919]
[1730467285998,9.0561919,169.89,169.85,4.22241621]
[1730467286200,9.0561919,169.89,169.84,13.4210919]
[1730467286504,3.04,169.97,169.84,4.3649]
[1730467286505,14.14112408,169.92,169.84,4.3649]
[1730467287309,2.9462,169.89,169.84,7.3118]
[1730467288193,17.18112408,169.96,169.86,14.14112408]
[1730467288406,14.14112408,169.98,169.88,14.14112408]
[1730467288696,2.9456,169.93,169.88,17.08742408]
[1730467288904,14.14112408,169.98,169.88,14.14112408]
[1730467289396,2.9452,169.95,169.88,14.14112408]
[1730467289990,2.9452,169.95,169.91,2.9458]
[1730467290603,14.14112408,169.98,169.88,14.14112408]
[1730467290808,2.9453,169.94,169.88,14.14112408]
[1730467291302,14.14112408,169.98,169.89,2.9461]
[1730467291496,14.14112408,169.98,169.88,14.14112408]
[1730467291696,14.14112408,169.98,169.88,17.08732408]
[1730467291916,14.14112408,169.98,169.88,14.14112408]
[1730467292405,2.9454,169.94,169.89,2.9461]
[1730467292805,2.9454,169.94,169.88,14.14112408]
[1730467292995,2.9451,169.96,169.91,2.9456]
[1730467293303,3.8729,170.01,169.91,2.9456]
[1730467293304,3.8729,170.01,169.93,14.14112408]
[1730467293607,2.9442,170.01,169.97,2.9447]
[1730467294206,2.944,170.02,169.98,2.9444]
[1730467294402,17.18112408,170.04,169.98,2.9444]
[1730467294707,2.9438,170.03,169.98,2.9444]
[1730467294906,3.04,170.04,169.96,3.04]
[1730467295104,14.14112408,170.06,169.99,2.9443]
[1730467295907,2.9438,170.03,169.99,2.9443]
[1730467297813,14.14112408,170.06,169.97,14.14112408]
[1730467297995,17.18112408,170.09,169.99,14.14112408]
[1730467298202,2.9435,170.05,170.01,2.944]
[1730467299900,154.44087,170.15,170.03,14.14112408]
[1730467300103,154.44087,170.15,170.07,14.14112408]
[1730467300104,2.942,170.14,170.07,14.14112408]
[1730467300410,2.942,170.14,170.08,3.04]
[1730467300601,2.942,170.14,170.09,2.9425]
[1730467300805,2.942,170.14,170.08,3.04]
[1730467301112,157.38247,170.15,170.09,14.14112408]
[1730467301616,154.44087,170.15,170.09,14.14112408]
[1730467301918,2.9418,170.14,170.1,2.9425]
[1730467302214,157.38257,170.15,170.11,2.9422]
[1730467302405,157.38257,170.15,170.09,14.14112408]
[1730467302808,157.38257,170.15,170.09,17.08362408]
[1730467303806,154.44087,170.15,170.11,2.9423]
[1730467304010,154.44087,170.15,170.09,14.14112408]
[1730467304508,154.44087,170.15,170.1,2.9424]
[1730467304819,157.38247,170.15,170.1,2.9424]
[1730467305318,154.44087,170.15,170.1,2.9423]
[1730467306206,2.9419,170.14,170.09,14.14112408]
[1730467306520,154.44087,170.15,170.1,3.04]
[1730467307406,154.44087,170.15,170.1,17.18112408]
[1730467308318,2.942,170.13,170.1,17.18112408]
[1730467308519,154.44087,170.15,170.1,17.18112408]
[1730467309023,154.44087,170.15,170.12,14.14112408]
[1730467309808,157.38257,170.15,170.12,14.14112408]
[1730467310015,154.44087,170.15,170.12,14.14112408]
[1730467310214,154.44087,170.15,170.1,20.12352408]
[1730467310712,2.9423,170.11,170.08,14.14112408]
[1730467310912,154.44087,170.15,170.09,3.04]
[1730467311517,2.9424,170.11,170.09,3.04]
[1730467311712,154.44087,170.15,170.09,3.04]
[1730467311927,168.58199408,170.15,170.08,3.04]
[1730467312119,2.9427,170.09,170.06,14.14112408]
[1730467312320,2.6749,170.14,170.07,3.04]
[1730467312627,2.9428,170.09,170.07,3.04]
[1730467316520,1.2611,170.13,170.07,3.04]
[1730467316724,2.9425,170.1,170.07,3.04]
[1730467317211,2.9421,170.13,170.08,17.08382408]
[1730467318320,2.9422,170.12,170.08,17.08382408]
[1730467318922,2.9419,170.14,170.1,2.9424]
[1730467319526,154.44087,170.15,170.09,2.9425]
[1730467319527,2.942,170.13,170.09,2.9425]
[1730467319723,154.44087,170.15,170.08,14.14112408]
[1730467321028,168.58199408,170.15,170.06,14.14112408]
[1730467321225,168.58199408,170.15,170.07,3.04]
[1730467321529,168.58199408,170.15,170.04,2.88896594]
[1730467321530,2.9431,170.07,170.04,17.18112408]
[1730467321833,2.9431,170.07,170.04,20.12452408]
[1730467322841,1.2904,170.12,170.06,14.14112408]
[1730467323129,2.942,170.13,170.09,2.9425]
[1730467323333,2.942,170.13,170.08,14.14112408]
[1730467323524,2.942,170.13,170.09,3.04]
[1730467323731,154.44087,170.15,170.09,3.04]
[1730467324322,2.9425,170.11,170.09,3.04]
[1730467325134,2.9425,170.1,170.09,3.04]
[1730467325341,154.44087,170.15,170.06,14.14112408]
[1730467325529,14.14112408,170.13,170.03,14.14112408]
[1730467325738,2.7227,170.12,170.04,3.04]
[1730467326029,2.9432,170.07,170.04,5.9834]
[1730467326529,2.9429,170.08,170.05,2.9433]
[1730467326831,3.04,170.14,170.05,2.9433]
[1730467326832,20.02352408,170.18,170.07,14.14112408]
[1730467327037,20.02352408,170.18,170.05,14.14112408]
[1730467327038,3.7814,170.17,170.09,14.14112408]
[1730467327939,2.9424,170.11,170.09,14.14112408]
[1730467328639,2.9419,170.14,170.11,2.9423]
[1730467329644,2.942,170.13,170.1,2.9424]
[1730467330940,3.7814,170.17,170.1,2.9424]
[1730467330941,2.9419,170.14,170.1,2.9424]
[1730467331732,2.9428,170.08,170.05,14.14112408]
[1730467331944,171.62199408,170.15,170.04,3.04]
[1730467332143,14.14112408,170.12,170.04,3.04]
[1730467332332,2.9426,170.1,170.04,3.04]
[1730467332537,14.14112408,170.12,170.04,3.04]
[1730467333046,2.943,170.08,170.04,5.9834]
[1730467333345,14.14112408,170.12,170.04,3.04]
[1730467333738,2.9431,170.07,170.04,5.9835]
[1730467334042,14.14112408,170.12,170.04,5.9835]
[1730467334434,14.14112408,170.12,170.04,2.9435]
[1730467334832,14.14112408,170.1,170.0,14.14112408]
[1730467335042,14.14112408,170.1,169.98,1.3666]
[1730467335043,2.9437,170.03,169.98,18.48485254]
[1730467335341,3.9841,170.09,169.96,2.35449989]
[1730467335342,14.14112408,170.06,169.96,14.14112408]
[1730467335539,2.9443,170.0,169.97,3.04]
[1730467335939,2.9436,170.04,169.97,5.9846]
[1730467336143,14.14112408,170.06,169.97,5.9846]
[1730467336337,14.14112408,170.06,169.97,3.04]
[1730467336736,2.944,170.02,169.98,2.9445]
[1730467337032,14.14112408,170.06,169.96,17.18112408]
[1730467337447,2.9437,170.03,170.0,2.9442]
[1730467338045,14.14112408,170.06,169.96,17.18112408]
[1730467338250,14.14112408,170.06,170.01,2.9437]
[1730467338543,14.14112408,170.06,169.96,17.18112408]
[1730467339241,2.9431,170.05,169.99,14.14112408]
[1730467339438,18.12522408,170.09,169.99,14.14112408]
[1730467339905,2.9427,170.08,169.97,5.8212619]
[1730467340148,3.9841,170.09,170.01,14.14112408]
[1730467340342,3.9841,170.09,170.02,3.04]
[1730467340866,14.14112408,170.18,170.07,14.14112408]
[1730467341054,14.14112408,170.18,170.08,3.04]
[1730467341055,16.75032408,170.18,170.08,3.04]
[1730467341554,16.75032408,170.18,170.1,2.9422]
[1730467341944,2.9416,170.14,170.1,2.9422]
[1730467343143,16.75032408,170.18,170.08,3.04]
[1730467343344,2.9419,170.12,170.08,5.9825]
[1730467343541,2.9419,170.12,170.08,3.04]
[1730467344550,2.9419,170.12,170.08,5.9825]
[1730467345448,16.75032408,170.18,170.08,3.04]
[1730467346144,2.942,170.12,170.08,5.9824]
[1730467346555,2.942,170.12,170.08,2.9424]
[1730467348049,2.9417,170.13,170.1,2.9422]
[1730467348940,2.9419,170.12,170.09,17.08342408]
[1730467349140,2.6092,170.18,170.11,14.14112408]
[1730467349554,2.9417,170.14,170.11,14.14112408]
[1730467350146,16.75032408,170.18,170.09,14.14112408]
[1730467351051,1.2677,170.14,170.08,3.04]
[1730467352144,1.2677,170.14,170.09,14.14112408]
[1730467353057,1.2677,170.14,170.09,17.08332408]
[1730467353649,2.9416,170.14,170.09,17.08332408]
[1730467353855,1.2677,170.17,170.09,17.08332408]
[1730467354052,1.2677,170.17,170.09,14.14112408]
[1730467354253,1.2677,170.17,170.11,14.14112408]
[1730467356251,2.9418,170.13,170.11,14.14112408]
[1730467356447,1.2677,170.17,170.08,17.18112408]
[1730467357154,2.9422,170.11,170.08,20.12352408]
[1730467359557,2.9422,170.11,170.08,17.18112408]
[1730467359946,1.2677,170.17,170.08,17.18112408]
[1730467360252,2.9424,170.09,170.08,17.18112408]
[1730467361358,1.2677,170.17,170.06,14.14112408]
[1730467361359,17.18112408,170.16,170.06,14.14112408]
[1730467361549,17.18112408,170.16,170.04,14.14112408]
[1730467361550,14.14112408,170.14,170.04,14.14112408]
[1730467361746,14.14112408,170.14,170.05,3.04]
[1730467363260,14.14112408,170.14,170.04,14.14112408]
[1730467365865,14.14112408,170.14,170.05,5.84955653]
[1730467366160,17.18112408,170.16,170.06,19.99043698]
[1730467366460,17.18112408,170.16,170.06,14.14112408]
[1730467367370,14.14112408,170.16,170.06,14.14112408]
[1730467367560,17.18112408,170.16,170.06,14.14112408]
[1730467368160,14.14112408,170.14,170.04,14.14112408]
[1730467368363,14.14112408,170.14,170.05,5.85623419]
[1730467368660,14.14112408,170.14,170.04,14.14112408]
[1730467368868,14.14112408,170.14,170.05,5.85824436]
[1730467369061,14.14112408,170.14,170.04,14.14112408]
[1730467369257,14.14112408,170.14,170.05,5.85695946]
[1730467369466,14.14112408,170.12,170.02,17.18112408]
[1730467369766,2.5661,170.11,170.03,3.82705129]
[1730467369965,2.5661,170.11,170.04,5.85747479]
[1730467370265,1.2765,170.1,170.02,17.18112408]
[1730467370468,1.2765,170.1,170.03,5.85779274]
[1730467370663,1.2765,170.1,170.02,17.18112408]
[1730467370971,1.2765,170.1,170.03,5.85717865]
[1730467371270,1.2765,170.1,170.02,17.18112408]
[1730467371467,1.2765,170.1,170.03,5.85648772]
[1730467371673,1.2765,170.1,170.02,17.18112408]
[1730467371966,1.2765,170.1,170.03,5.8570393]
[1730467372170,1.2765,170.1,170.02,17.18112408]
[1730467372356,1.2765,170.1,170.03,5.85647819]
[1730467372557,1.2765,170.1,170.02,17.18112408]
[1730467372757,1.2765,170.1,170.03,5.8566703]
[1730467373071,1.2765,170.1,170.02,17.18112408]
[1730467373369,1.2765,170.1,170.03,1.47201912]
[1730467373567,1.2765,170.1,170.04,5.85633963]
[1730467373867,1.2765,170.1,170.05,1.47197222]
[1730467374062,1.2765,170.1,170.02,17.18112408]
[1730467374264,1.2765,170.1,170.03,15.22581191]
[1730467374462,1.2765,170.1,170.04,19.99720558]
[1730467374662,1.2765,170.1,170.05,5.8560815]
[1730467374970,1.2765,170.1,170.04,14.14112408]
[1730467375269,1.2765,170.1,170.05,5.85449407]
[1730467375471,1.2765,170.1,170.04,14.14112408]
[1730467375769,1.2765,170.1,170.05,5.85445732]
[1730467375983,1.2765,170.1,170.04,14.14112408]
[1730467376271,1.2765,170.1,170.05,5.85414766]
[1730467376474,1.2765,170.1,170.04,14.14112408]
[1730467376475,1.2765,170.1,170.06,1.47191292]
[1730467376777,1.2765,170.1,170.04,14.14112408]
[1730467376964,1.2765,170.1,170.05,5.85492527]
[1730467377171,1.2765,170.1,170.04,14.14112408]
[1730467377569,1.2765,170.1,170.05,1.47199599]
[1730467377770,1.2765,170.1,170.04,14.14112408]
[1730467377964,1.2765,170.1,170.05,1.47199467]
[1730467378275,1.2765,170.1,170.04,14.14112408]
[1730467378665,1.2765,170.1,170.05,5.85890371]
[1730467378865,1.2765,170.1,170.04,14.14112408]
[1730467379063,1.2765,170.1,170.05,1.47197456]
[1730467379262,1.2765,170.1,170.02,17.18112408]
[1730467379466,1.2765,170.1,170.03,15.23626637]
[1730467379674,1.2765,170.1,170.04,5.86010245]
[1730467379976,1.2765,170.1,170.05,5.85965966]
[1730467380282,1.2765,170.1,170.02,17.18112408]
[1730467380479,1.2765,170.1,170.03,15.23442856]
[1730467380678,1.2765,170.1,170.04,5.8593956]
[1730467380868,1.2765,170.1,170.02,17.18112408]
[1730467380869,1.2765,170.1,170.05,5.8593956]
[1730467381070,1.2765,170.1,170.02,17.18112408]
[1730467381271,1.2765,170.1,170.03,1.47201191]
[1730467381470,1.2765,170.1,170.04,1.47201191]
[1730467381679,1.2765,170.1,170.02,17.18112408]
[1730467381989,15.41762408,170.1,170.03,5.85808496]
[1730467382182,15.41762408,170.1,170.01,3.04]
[1730467382384,15.41762408,170.1,170.02,8.21348482]
[1730467382681,14.14112408,170.07,170.03,5.8582289]
[1730467382879,14.14112408,170.07,169.98,19.94607991]
[1730467382880,14.14112408,170.07,169.99,8.7734256]
[1730467383183,14.14112408,170.07,170.0,24.00652123]
[1730467383384,14.14112408,170.07,169.98,22.98607991]
[1730467383385,14.14112408,170.07,170.01,15.23309563]
[1730467383581,14.14112408,170.07,170.02,5.85888293]
[1730467383781,14.14112408,170.07,170.03,1.47203301]
[1730467383978,14.14112408,170.07,169.98,14.14112408]
[1730467384179,14.14112408,170.07,169.99,15.0440628]
[1730467384374,14.14112408,170.07,170.0,15.0440628]
[1730467384576,14.14112408,170.07,170.01,12.68879713]
[1730467384885,14.14112408,170.07,169.98,14.14112408]
[1730467385179,1.2765,170.1,170.0,14.14112408]
[1730467385180,15.41762408,170.1,170.0,14.14112408]
[1730467385377,15.41762408,170.1,170.01,1.4723471]
[1730467385582,15.41762408,170.1,170.0,14.14112408]
[1730467385878,1.2765,170.1,170.02,14.14112408]
[1730467386190,1.2765,170.1,170.03,1.47216542]
[1730467386376,1.2765,170.1,170.02,17.18112408]
[1730467386678,1.2765,170.1,170.03,1.47204167]
[1730467386885,1.2765,170.1,170.02,17.18112408]
[1730467387086,1.2765,170.1,170.03,5.78415493]
[1730467387288,1.2765,170.1,170.02,17.18112408]
[1730467387781,1.2765,170.1,170.03,1.47206297]
[1730467388091,1.2765,170.1,170.02,17.18112408]
[1730467388677,1.2765,170.1,170.03,1.47206297]
[1730467388877,1.2765,170.1,170.02,17.18112408]
[1730467389194,1.2765,170.1,170.03,1.47208308]
[1730467389489,1.2765,170.1,170.02,17.18112408]
[1730467389985,14.14112408,170.09,170.02,3.04]
[1730467390286,14.14112408,170.09,169.99,14.14112408]
[1730467390487,14.14112408,170.07,170.0,5.78483574]
[1730467390684,14.14112408,170.07,169.98,3.04]
[1730467390886,14.14112408,170.07,169.99,8.14068372]
[1730467391091,14.14112408,170.07,170.0,1.4722345]
[1730467391296,14.14112408,170.07,169.98,3.04]
[1730467391583,14.14112408,170.07,169.99,8.13929737]
[1730467391786,14.14112408,170.09,170.0,5.78371911]
[1730467391984,14.14112408,170.09,170.01,5.78371911]
[1730467392185,14.14112408,170.09,170.02,1.47209499]
[1730467392379,14.14112408,170.09,169.99,14.14112408]
[1730467392579,14.14112408,170.09,170.0,15.03611075]
[1730467392792,14.14112408,170.09,170.01,5.78311952]
[1730467392989,14.14112408,170.09,170.02,1.4721155]
[1730467393187,14.14112408,170.09,169.99,14.14112408]
[1730467393389,14.14112408,170.09,170.0,8.13858405]
[1730467393689,14.14112408,170.09,170.01,5.78314561]
[1730467393891,14.14112408,170.09,169.99,14.14112408]
[1730467394094,14.14112408,170.09,170.0,8.13850711]
[1730467394296,14.14112408,170.09,170.01,5.78306867]
[1730467394586,14.14112408,170.09,169.99,14.14112408]
[1730467394789,14.14112408,170.09,170.0,8.13875399]
[1730467394980,14.14112408,170.09,170.01,1.47214902]
[1730467395292,14.14112408,170.09,169.99,14.14112408]
[1730467395485,14.14112408,170.09,170.0,5.78319448]
[1730467395688,14.14112408,170.09,170.01,1.47217068]
[1730467395906,14.14112408,170.09,169.99,14.14112408]
[1730467396193,14.14112408,170.09,170.0,1.47216062]
[1730467396586,14.14112408,170.09,170.01,5.78248302]
[1730467396795,14.14112408,170.09,170.0,1.47216062]
[1730467397006,14.14112408,170.09,170.01,5.78132274]
[1730467397196,14.14112408,170.09,170.0,1.47216062]
[1730467397397,14.14112408,170.09,170.01,5.78071284]
[1730467397603,14.14112408,170.09,170.0,1.47216062]
[1730467397896,14.14112408,170.09,170.01,5.78108984]
[1730467398100,14.14112408,170.09,170.02,1.47210626]
[1730467398289,14.14112408,170.09,170.0,1.47216062]
[1730467398804,14.14112408,170.09,170.01,5.78163558]
[1730467399102,14.14112408,170.09,170.0,1.47216062]